Workbook

Sheet паспорт
A1: ПАТ "УКРТРАНСГАЗ" | G1: ПАСПОРТ ФІЗИКО-ХІМІЧНИХ ПОКАЗНИКІВ ПРИРОДНОГО ГАЗУ № 617
A2: Філія "УМГ "ХАРКІВТРАНСГАЗ" | G2: переданого Криворізьким ЛВУМГ та прийнятого ПАТ "Криворіжгаз", ПАТ "Дніпропетровськгаз"ВАТ"Кіровоградгаз"
A3: Криворізьке ЛВУМГ | G3: ПАТ "КТЗ "КОНСТАР",ПАТ КТЗ "КОНСТАР"Випробувальний стенд, ПАТ ІВН "ЕНЕРГІЯ"
A4: Вимірювальна хіміко-аналітична лабораторія | G4: Маршрут № 617
A5: Свідоцтво № ПЄ 0048/2013 чинне до 16.05.2018р.
K6: по газопроводу ШДО, ШДКРІ | V6: за період з | X6: 2017-03-01 | Z6: по | AA6: 2017-03-31
A9: Число місяця | B9: Компонентний склад, мол. % | N9: Фізико-хімічні показники газу обчислені на основі компонентного складу, 101,325 кПа | X9: Температура точки роси за вологою (Р = 3.92 МПа), °С | Y9: Температура точки роси за вуглеводнями, °С | Z9: Вміст сірководню, г/м3 | AA9: Вміст меркаптанової сірки, г/м3 | AB9: Вміст механічних домішок, г/м3
N10: Густина абсолютна, кг/м3,при 20 °С, | O10: Температура вимірювання/згоряння при 20/25°С
B11: метан, С1 | C11: етан, С2 | D11: пропан, С3 | E11: ізо-бутан, і-С4 | F11: н-бутан, н-С4 | G11: нео-пентан, нео-С5 | H11: ізо-пентан, і-С5 | I11: н-пентан, н-С5 | J11: гексани та вищі, С6+ | K11: кисень, О2 | L11: азот, N2 | M11: діоксид вуглецю, CО2 | O11: Теплота згоряння нижча | R11: Теплота згоряння вища | U11: Число Воббе вище
O12: ккал/м³ | P12: МДж/м³ | Q12: кВт⋅год/м³ | R12: ккал/м³ | S12: МДж/м³ | T12: кВт⋅год/м³ | U12: ккал/м³ | V12: МДж/м³ | W12: кВт⋅год/м³
A13: 1 | B13: 95.9002 | C13: 2.1425 | D13: 0.6731 | E13: 0.1009 | F13: 0.112 | G13: 0.0014 | H13: 0.0247 | I13: 0.0194 | J13: 0.0245 | K13: 0.0053 | L13: 0.8242 | M13: 0.1719 | N13: 0.7003 | O13: =P13*238.8459 -> 8180.472075 | P13: 34.25 | Q13: =P13/3.6 -> 9.513888889 | R13: =S13*238.8459 -> 9066.590364 | S13: 37.96 | T13: =S13/3.6 -> 10.54444444 | U13: =V13/0.0041868 -> 11889.74873 | V13: 49.78 | W13: =V13/3.6 -> 13.82777778 | AC13: =SUM(B13:M13)+$K$44+$N$44 -> 100.0001
A14: 2 | B14: 95.8286 | C14: 2.2027 | D14: 0.675 | E14: 0.0992 | F14: 0.1084 | G14: 0.0017 | H14: 0.0224 | I14: 0.0167 | J14: 0.0226 | K14: 0.005 | L14: 0.8452 | M14: 0.1727 | N14: 0.7006 | O14: 8180.472075 | P14: 34.25 | Q14: 9.513888889 | R14: 9066.590364 | S14: 37.96 | T14: 10.54444444 | U14: =V14/0.0041868 -> 11887.36028 | V14: 49.77 | W14: 13.825 | AC14: 100.0002
A15: 3 | B15: 95.9611 | C15: 2.1528 | D15: 0.6591 | E15: 0.0978 | F15: 0.1026 | G15: 0.0015 | H15: 0.0204 | I15: 0.0147 | J15: 0.0187 | K15: 0.0041 | L15: 0.7982 | M15: 0.169 | N15: 0.6995 | O15: 8175.695157 | P15: 34.23 | Q15: 9.508333333 | R15: 9061.813446 | S15: 37.94 | T15: 10.53888889 | U15: =V15/0.0041868 -> 11889.74873 | V15: 49.78 | W15: 13.82777778 | X15: -20.1 | Y15: -17.2 | Z15: <0,0001 | AA15: 0.0019 | AB15: відсутні | AC15: 100 | AD15: =IF(AC15=100,"ОК"," ") -> ОК
A16: 4 | O16: =P16*238.8459 -> 8175.695157 | P16: 34.23 | Q16: =P16/3.6 -> 9.508333333 | R16: =S16*238.8459 -> 9061.813446 | S16: 37.94 | T16: =S16/3.6 -> 10.53888889 | U16: =V16/0.0041868 -> 11889.74873 | V16: 49.78 | W16: 13.82777778 | AC16: =SUM(B18:M18)+$K$44+$N$44 -> 100.0001 | AD16: =IF(AC16=100,"ОК"," ") -> 
A17: 5 | O17: 8175.695157 | P17: 34.23 | Q17: 9.508333333 | R17: 9061.813446 | S17: 37.94 | T17: 10.53888889 | U17: 11889.74873 | V17: 49.78 | W17: 13.82777778 | AC17: =SUM(B19:M19)+$K$44+$N$44 -> 100.0001
A18: 6 | B18: 95.8861 | C18: 2.2252 | D18: 0.6674 | E18: 0.099 | F18: 0.1039 | G18: 0.0018 | H18: 0.0207 | I18: 0.0149 | J18: 0.0194 | K18: 0.0039 | L18: 0.7881 | M18: 0.1697 | N18: 0.7 | O18: =P18*238.8459 -> 8182.860534 | P18: 34.26 | Q18: =P18/3.6 -> 9.516666667 | R18: =S18*238.8459 -> 9068.978823 | S18: 37.97 | T18: =S18/3.6 -> 10.54722222 | U18: =V18/0.0041868 -> 11896.91411 | V18: 49.81 | W18: =V18/3.6 -> 13.83611111 | AC18: =SUM(B20:M20)+$K$44+$N$44 -> 0
A19: 7 | B19: 95.683 | C19: 2.2928 | D19: 0.6936 | E19: 0.1016 | F19: 0.1114 | G19: 0.0018 | H19: 0.0231 | I19: 0.0171 | J19: 0.0253 | K19: 0.0074 | L19: 0.8622 | M19: 0.1808 | N19: 0.7017 | O19: =P19*238.8459 -> 8187.637452 | P19: 34.28 | Q19: =P19/3.6 -> 9.522222222 | R19: =S19*238.8459 -> 9073.755741 | S19: 37.99 | T19: =S19/3.6 -> 10.55277778 | U19: =V19/0.0041868 -> 11887.36028 | V19: 49.77 | W19: =V19/3.6 -> 13.825 | AC19: =SUM(B21:M21)+$K$44+$N$44 -> 100 | AD19: ОК
A20: 8 | O20: =P20*238.8459 -> 8187.637452 | P20: 34.28 | Q20: =P20/3.6 -> 9.522222222 | R20: =S20*238.8459 -> 9073.755741 | S20: 37.99 | T20: =S20/3.6 -> 10.55277778 | U20: =V20/0.0041868 -> 11887.36028 | V20: 49.77 | W20: =V20/3.6 -> 13.825 | AC20: 0
A21: 9 | B21: 95.7455 | C21: 2.2844 | D21: 0.6976 | E21: 0.1038 | F21: 0.1098 | G21: 0.0017 | H21: 0.0222 | I21: 0.0162 | J21: 0.0214 | K21: 0.0043 | L21: 0.8161 | M21: 0.177 | N21: 0.7013 | O21: 8190.025911 | P21: 34.29 | Q21: 9.525 | R21: 9076.1442 | S21: 38 | T21: 10.55555556 | U21: =V21/0.0041868 -> 11896.91411 | V21: 49.81 | W21: 13.83611111 | AC21: 100 | AD21: ОК
A22: 10 | B22: 95.828 | C22: 2.2648 | D22: 0.6854 | E22: 0.1031 | F22: 0.1068 | G22: 0.0017 | H22: 0.0215 | I22: 0.0156 | J22: 0.0205 | K22: 0.0048 | L22: 0.7782 | M22: 0.1698 | N22: 0.7006 | O22: 8190.025911 | P22: 34.29 | Q22: 9.525 | R22: 9076.1442 | S22: 38 | T22: 10.55555556 | U22: 11901.69103 | V22: 49.83 | W22: 13.84166667 | X22: -21.1 | Y22: -17.6 | Z22: <0,0001 | AA22: 0.0028 | AC22: 100.0002
A23: 11 | O23: =P23*238.8459 -> 8190.025911 | P23: 34.29 | Q23: =P23/3.6 -> 9.525 | R23: =S23*238.8459 -> 9076.1442 | S23: 38 | T23: =S23/3.6 -> 10.55555556 | U23: 11901.69103 | V23: 49.83 | W23: 13.84166667 | AC23: 0
A24: 12 | O24: 8190.025911 | P24: 34.29 | Q24: 9.525 | R24: 9076.1442 | S24: 38 | T24: 10.55555556 | U24: 11901.69103 | V24: 49.83 | W24: 13.84166667 | AC24: 0
A25: 13 | B25: 95.6459 | C25: 2.3604 | D25: 0.7179 | E25: 0.1087 | F25: 0.1146 | G25: 0.0018 | H25: 0.0233 | I25: 0.0169 | J25: 0.0229 | K25: 0.0053 | L25: 0.8012 | M25: 0.1811 | N25: 0.7022 | O25: 8201.968206 | P25: 34.34 | Q25: 9.538888889 | R25: 9088.086495 | S25: 38.05 | T25: 10.56944444 | U25: 11904.07949 | V25: 49.84 | W25: 13.84444444 | AC25: 100 | AD25: ОК
A26: 14 | B26: 95.4315 | C26: 2.4549 | D26: 0.7516 | E26: 0.1118 | F26: 0.1225 | G26: 0.002 | H26: 0.0255 | I26: 0.0189 | J26: 0.0273 | K26: 0.0054 | L26: 0.8567 | M26: 0.1918 | N26: 0.704 | O26: 8209.133583 | P26: 34.37 | Q26: 9.547222222 | R26: 9097.640331 | S26: 38.09 | T26: 10.58055556 | U26: 11901.69103 | V26: 49.83 | W26: 13.84166667 | Z26: <0,0001 | AA26: 0.0025 | AC26: 99.9999
A27: 15 | B27: 95.4071 | C27: 2.478 | D27: 0.77 | E27: 0.1155 | F27: 0.1245 | G27: 0.0018 | H27: 0.0262 | I27: 0.0194 | J27: 0.027 | K27: 0.0051 | L27: 0.8309 | M27: 0.1944 | N27: 0.7043 | O27: 8216.29896 | P27: 34.4 | Q27: 9.555555556 | R27: 9104.805708 | S27: 38.12 | T27: 10.58888889 | U27: 11908.85641 | V27: 49.86 | W27: 13.85 | X27: -20.1 | Y27: -17.6 | AC27: 99.9999
A28: 16 | B28: 95.2424 | C28: 2.5751 | D28: 0.7949 | E28: 0.1185 | F28: 0.1305 | G28: 0.0021 | H28: 0.0276 | I28: 0.0207 | J28: 0.0306 | K28: 0.0045 | L28: 0.8517 | M28: 0.2014 | N28: 0.7057 | O28: 8228.241255 | P28: 34.45 | Q28: 9.569444444 | R28: 9116.748003 | S28: 38.17 | T28: 10.60277778 | U28: 11911.24486 | V28: 49.87 | W28: 13.85277778 | AC28: 100 | AD28: ОК
A29: 17 | B29: 95.3052 | C29: 2.543 | D29: 0.7866 | E29: 0.1177 | F29: 0.1278 | G29: 0.002 | H29: 0.0268 | I29: 0.0199 | J29: 0.0295 | K29: 0.0047 | L29: 0.8361 | M29: 0.2007 | N29: 0.7052 | O29: 8223.464337 | P29: 34.43 | Q29: 9.563888889 | R29: 9114.359544 | S29: 38.16 | T29: 10.6 | U29: 11911.24486 | V29: 49.87 | W29: 13.85277778 | AC29: 100 | AD29: ОК
A30: 18 | O30: =P30*238.8459 -> 8223.464337 | P30: 34.43 | Q30: =P30/3.6 -> 9.563888889 | R30: =S30*238.8459 -> 9114.359544 | S30: 38.16 | T30: =S30/3.6 -> 10.6 | U30: =V30/0.0041868 -> 11911.24486 | V30: 49.87 | W30: =V30/3.6 -> 13.85277778 | AC30: 0
A31: 19 | O31: 8223.464337 | P31: 34.43 | Q31: 9.563888889 | R31: 9114.359544 | S31: 38.16 | T31: 10.6 | U31: 11911.24486 | V31: 49.87 | W31: 13.85277778 | AC31: 0
A32: 20 | B32: 95.2271 | C32: 2.6031 | D32: 0.8095 | E32: 0.1211 | F32: 0.1285 | G32: 0.002 | H32: 0.0268 | I32: 0.0194 | J32: 0.0272 | K32: 0.0048 | L32: 0.8311 | M32: 0.1995 | N32: 0.7058 | O32: 8230.629714 | P32: 34.46 | Q32: 9.572222222 | R32: 9123.91338 | S32: 38.2 | T32: 10.61111111 | U32: 11916.02178 | V32: 49.89 | W32: 13.85833333 | AC32: 100.0001 | AD32: =IF(AC32=100,"ОК"," ") -> 
A33: 21 | B33: 95.4443 | C33: 2.5059 | D33: 0.7864 | E33: 0.1198 | F33: 0.1238 | G33: 0.0017 | H33: 0.0244 | I33: 0.0176 | J33: 0.0218 | K33: 0.0052 | L33: 0.7614 | M33: 0.1877 | N33: 0.7041 | O33: 8225.852796 | P33: 34.44 | Q33: 9.566666667 | R33: 9114.359544 | S33: 38.16 | T33: 10.6 | U33: 11920.7987 | V33: 49.91 | W33: 13.86388889 | X33: -19.8 | Y33: -16.7 | Z33: <0,0001 | AA33: 0.0021 | AC33: 100 | AD33: ОК
A34: 22 | B34: 95.6001 | C34: 2.428 | D34: 0.7604 | E34: 0.1174 | F34: 0.1201 | G34: 0.0017 | H34: 0.0234 | I34: 0.0168 | J34: 0.0208 | K34: 0.0046 | L34: 0.7317 | M34: 0.1752 | N34: 0.7029 | O34: 8218.687419 | P34: 34.41 | Q34: 9.558333333 | R34: 9107.194167 | S34: 38.13 | T34: 10.59166667 | U34: 11923.18716 | V34: 49.92 | W34: 13.86666667 | AC34: 100.0002
A35: 23 | B35: 95.5396 | C35: 2.4592 | D35: 0.7686 | E35: 0.1178 | F35: 0.1214 | G35: 0.0017 | H35: 0.0239 | I35: 0.0173 | J35: 0.0217 | K35: 0.0042 | L35: 0.7426 | M35: 0.1821 | N35: 0.7033 | O35: 8221.075878 | P35: 34.42 | Q35: 9.561111111 | R35: 9109.582626 | S35: 38.14 | T35: 10.59444444 | U35: 11920.7987 | V35: 49.91 | W35: 13.86388889 | AC35: 100.0001 | AD35: =IF(AC35=100,"ОК"," ") -> 
A36: 24 | B36: 95.7017 | C36: 2.4071 | D36: 0.7666 | E36: 0.1197 | F36: 0.1163 | G36: 0.0013 | H36: 0.0211 | I36: 0.0146 | J36: 0.0121 | K36: 0.0039 | L36: 0.6613 | M36: 0.1742 | N36: 0.702 | O36: 8218.687419 | P36: 34.41 | Q36: 9.558333333 | R36: 9109.582626 | S36: 38.14 | T36: 10.59444444 | U36: 11930.35254 | V36: 49.95 | W36: 13.875 | AC36: 99.9999
A37: 25 | O37: =P37*238.8459 -> 8218.687419 | P37: 34.41 | Q37: =P37/3.6 -> 9.558333333 | R37: =S37*238.8459 -> 9109.582626 | S37: 38.14 | T37: =S37/3.6 -> 10.59444444 | U37: =V37/0.0041868 -> 11930.35254 | V37: 49.95 | W37: =V37/3.6 -> 13.875 | AC37: 0
A38: 26 | O38: 8218.687419 | P38: 34.41 | Q38: 9.558333333 | R38: 9109.582626 | S38: 38.14 | T38: 10.59444444 | U38: 11930.35254 | V38: 49.95 | W38: 13.875 | AC38: 0
A39: 27 | B39: 95.469 | C39: 2.5696 | D39: 0.8238 | E39: 0.1303 | F39: 0.1269 | G39: 0.0014 | H39: 0.023 | I39: 0.0159 | J39: 0.0127 | K39: 0.0037 | L39: 0.6349 | M39: 0.1888 | N39: 0.7042 | O39: 8242.572009 | P39: 34.51 | Q39: 9.586111111 | R39: 9133.467216 | S39: 38.24 | T39: 10.62222222 | U39: 11944.68329 | V39: 50.01 | W39: 13.89166667 | AC39: 100 | AD39: ОК
A40: 28 | B40: 95.3961 | C40: 2.6117 | D40: 0.8349 | E40: 0.1314 | F40: 0.1275 | G40: 0.0014 | H40: 0.0233 | I40: 0.0162 | J40: 0.0129 | K40: 0.0061 | L40: 0.6466 | M40: 0.192 | N40: 0.7047 | O40: 8244.960468 | P40: 34.52 | Q40: 9.588888889 | R40: 9138.244134 | S40: 38.26 | T40: 10.62777778 | U40: 11944.68329 | V40: 50.01 | W40: 13.89166667 | Z40: <0,0001 | AA40: <0,0002 | AC40: 100.0001
A41: 29 | B41: 94.2585 | C41: 3.1004 | D41: 0.8985 | E41: 0.1286 | F41: 0.1626 | G41: 0.004 | H41: 0.0393 | I41: 0.0308 | J41: 0.092 | K41: 0.0037 | L41: 1.0176 | M41: 0.264 | N41: 0.7147 | O41: =P41*238.8459 -> 8287.95273 | P41: 34.7 | Q41: 9.638888889 | R41: =S41*238.8459 -> 9181.236396 | S41: 38.44 | T41: =S41/3.6 -> 10.67777778 | U41: 11918.41024 | V41: 49.9 | W41: =V41/3.6 -> 13.86111111 | X41: -17.9 | Y41: -15 | AC41: 100 | AD41: ОК
A42: 30 | B42: 94.6799 | C42: 2.8495 | D42: 0.9207 | E42: 0.1332 | F42: 0.1656 | G42: 0.0025 | H42: 0.0367 | I42: 0.0284 | J42: 0.0527 | K42: 0.0038 | L42: 0.8905 | M42: 0.2366 | N42: 0.7113 | O42: 8273.621976 | P42: 34.64 | Q42: =P42/3.6 -> 9.622222222 | R42: 9166.905642 | S42: 38.38 | T42: =S42/3.6 -> 10.66111111 | U42: 11927.96408 | V42: 49.94 | W42: =V42/3.6 -> 13.87222222 | AC42: 100.0001
A43: 31 | B43: 95.4715 | C43: 2.4719 | D43: 0.7374 | E43: 0.1098 | F43: 0.121 | G43: 0.0024 | H43: 0.0257 | I43: 0.019 | J43: 0.0325 | K43: 0.0052 | L43: 0.8273 | M43: 0.1763 | N43: 0.7037 | O43: 8213.910501 | P43: 34.39 | Q43: =P43/3.6 -> 9.552777778 | R43: 9102.417249 | S43: 38.11 | T43: =S43/3.6 -> 10.58611111 | U43: 11908.85641 | V43: 49.86 | W43: 13.85 | AB43: відсутні | AC43: 100 | AD43: ОК
A44: Рівень одоризації відповідає чинним нормативним документам | O44: 8206.289734 | P44: 34.35809337 | Q44: 9.543914826 | R44: 9094.515633 | S44: 38.07691751 | T44: 10.57692153
H45: Середньозважене значення теплоти згоряння:
B48: Начальник Криворізького ЛВУМГ Охримчук А.О
C49: Підрозділу підприємства, якому підпорядкована лабораторія | O49: прізвище | R49: підпис | V49: дата
B50: Завідувач лабораторії Степанова О.Г
C51: Лабораторія, де здійснювалось вимірювання газу | O51: прізвище | R51: підпис | V51: дата
B52: Начальник служби ГВ та М Байда Ю.А.
C53: Підрозділу, відповідального за облік газу за маршрутом | O53: прізвище | R53: підпис | V53: дата

Sheet додаток
A2: Додаток до Паспорту фізико-хімічних показників природного газу №617
A4: Область | B4: ГРС, прямий споживач | C4: Cередньозважене значення вищої теплоти згоряння
C5: МДж/м³ | D5: ккал/м³ | E5: кВт*год./м³
A6: Дніпропетровська область | B6: ГРС смт Радушне | C6: 38.15 | D6: 9112 | E6: 10.6
B7: ГРС Вороновиця
B8: ГРС Побережне
B9: ГРС Іллінці
B10: ГРС Тягун
B11: ГРС Оратів
B12: ГРС Осична
B13: ГРС Росоша
B14: ГРС Погребище
B15: ГРС Вороновиця
B16: ГРС Побережне
B17: ГРС Іллінці
B18: ГРС Тягун
B19: ГРС Оратів
B20: ГРС Осична
B21: ГРС Росоша
B22: ГРС Погребище
B23: ГРС Вороновиця
B24: ГРС Побережне
B25: ГРС Іллінці
B26: ГРС Тягун
B27: ГРС Оратів
B28: ГРС Осична
B29: ГРС Росоша
B30: ГРС Погребище
B31: ГРС Вороновиця
B32: ГРС Побережне
B33: ГРС Іллінці
B34: ГРС Тягун
B35: ГРС Оратів
B36: ГРС Осична
B37: ГРС Росоша
B38: ГРС Погребище
B39: ГРС с.Радіонівка | C39: 38.07 | D39: 9093 | E39: 10.58
B40: ГРС с.Гейківка | C40: 38.09 | D40: 9098 | E40: 10.58
B41: ГРС 6 м.Кривий Ріг | C41: 38.07 | D41: 9094 | E41: 10.58
B42: ПАТ "КТЗ"Констар | C42: 37.97 | D42: 9070 | E42: 10.55
B43: ПАТ "КТЗ"Констар Випробувальний стенд | C43: =G45-D2 -> 0 | D43: 0 | E43: =I45-F2 -> 0
B44: ПАТ" ІВН ЕНЕРГІЯ" | C44: =G46-D3 -> 0 | D44: 0 | E44: =I46-F3 -> 0
B45: ГРС 4 м.Кривий Ріг | C45: 38.06 | D45: 9091 | E45: 10.57
B46: ГРС с.Андріївка | C46: 38.09 | D46: 9098 | E46: 10.58
B47: ГРС с.Зелена Балка | C47: 38.09 | D47: 9098 | E47: 10.58
B48: ГРС с.Карпівка | C48: 38.09 | D48: 9097 | E48: 10.58
B49: ГРС с.Степове | C49: 38.09 | D49: 9098 | E49: 10.58
A50: Кіровоградська область | B50: ГРС с.Кірове (Прогрес) | C50: 38.09 | D50: 9098 | E50: 10.58
B51: =#REF! ->  | C51: 37.89 | E51: 10.52
B52: ГРС с.Марфівка | C52: 38.09 | D52: 9098 | E52: 10.58
A53: Середньозважене значення вищої теплоти згоряння по маршруту № 617 | C53: 38.08 | D53: 9095 | E53: 10.58
A57: Начальник Криворізького ЛВУМГ | D57: Охримчук А.О.
A58: Підрозділу підприємства, якому підпорядкована лабораторія | D58: прізвище | E58: підпис | F58: дата
A59: Завідувач лабораторії | D59: Степанова О.Г.
A60: Лабораторія, де здійснювалось вимірювання газу | D60: прізвище | E60: підпис | F60: дата
A61: Начальник служби ГВ та М | D61: Байда Ю.А.
A62: Підрозділу, відповідального за облік газу за маршрутом | D62: прізвище | E62: підпис | F62: дата

Sheet variablesList (hidden)
A1: 3 | B1: x:\gaysin | C1: 10, 11, 24, 25, 127, 128, 132, 180, 207, 215 | D1: x:\
B2: x:\Illinci
B3: x:\Talne
